[Event "European Online Club-ch-I 2021"]
[Site "Online"]
[Date "2021.03.27"]
[Round "6.12"]
[White "Dishman, Stephen"]
[Black "Teclaf, Pawel"]
[Result "1/2-1/2"]
[ECO "A30"]
[WhiteElo "2316"]
[BlackElo "2507"]
[Annotator "ChessBase"]
[PlyCount "111"]
[EventDate "2021.03.27"]
[EventType "team-tourn"]
[EventCountry "NET"]
[SourceTitle "playchess.com"]
[Source "ChessBase"]
[SourceQuality "1"]
[TimeControl "900+5"]

1. Nf3 {[%emt 0:00:00]} c5 {[%emt 0:00:12]} 2. c4 {[%emt 0:00:03]} b6 {[%emt 0:00:08]} 3. g3 {[%emt 0:00:03]} Bb7 {[%emt 0:00:02]} 4. Bg2 {[%emt 0:00:01]} Nf6 {[%emt 0:00:01]} 5. O-O {[%emt 0:00:02]} g6 {[%emt 0:00:54]} 6. Nc3 {[%emt 0:00:05]} Bg7 {[%emt 0:00:02]} 7. d4 {[%emt 0:00:51]} Ne4 {[%emt 0:00:05]} 8. Nxe4 {[%emt 0:00:57]} Bxe4 {[%emt 0:00:02]} 9. d5 {[%emt 0:00:12]} O-O {[%emt 0:00:44]} 10. Bh3 {[%emt 0:01:06]} Bxf3 {[%emt 0:00:44]} 11. exf3 {[%emt 0:00:00]} e6 {[%emt 0:00:02]} 12. f4 {[%emt 0:00:12]} exd5 {[%emt 0:02:46]} 13. Qxd5 {[%emt 0:00:00]} Nc6 {[%emt 0:00:02]} 14. Rb1 {[%emt 0:01:19]} Nb4 {[%emt 0:00:30]} 15. Qxd7 {[%emt 0:00:03]} Qxd7 {[%emt 0:00:19]} 16. Bxd7 {[%emt 0:00:00]} Rad8 {[%emt 0:00:23]} 17. Rd1 {[%emt 0:00:27]} Nxa2 {[%emt 0:00:37]} 18. Be3 {[%emt 0:00:09]} Nb4 {[%emt 0:00:01]} 19. Rd2 {[%emt 0:05:13]} f5 {[%emt 0:04:47]} 20. Rbd1 {[%emt 0:00:25]} Bf6 {[%emt 0:00:38]} 21. Be6+ {[%emt 0:00:36]} Kh8 {[%emt 0:00:04]} 22. b3 {[%emt 0:00:20]} Rxd2 {[%emt 0:00:08]} 23. Rxd2 {[%emt 0:00:02]} Rd8 {[%emt 0:00:01]} 24. Rxd8+ {[%emt 0:00:11]} Bxd8 {[%emt 0:00:03]} 25. Bd2 {[%emt 0:00:03]} Na2 {[%emt 0:00:37]} 26. Kf1 {[%emt 0:00:02]} Bf6 {[%emt 0:00:10]} 27. Ke2 {[%emt 0:00:11]} Bc3 {[%emt 0:00:02]} 28. Be3 {[%emt 0:00:17]} Nb4 {[%emt 0:00:03]} 29. f3 {[%emt 0:00:28]} Kg7 {[%emt 0:00:29]} 30. g4 {[%emt 0:00:10]} Nc2 {[%emt 0:00:41]} 31. gxf5 {[%emt 0:00:25]} Kf6 {[%emt 0:00:05]} 32. Bf2 {[%emt 0:00:38]} gxf5 {[%emt 0:00:29]} 33. Bd7 {[%emt 0:00:18]} Kg6 {[%emt 0:00:21]} 34. Kd3 {[%emt 0:01:25]} Bd4 {[%emt 0:00:04]} 35. Kxc2 {[%emt 0:00:26]} Bxf2 {[%emt 0:00:02]} 36. Kd3 {[%emt 0:00:08]} Bg1 {[%emt 0:00:05]} 37. h3 {[%emt 0:00:02]} Kf6 {[%emt 0:00:04]} 38. Bc8 {[%emt 0:00:05]} Bf2 {[%emt 0:00:10]} 39. Bd7 {[%emt 0:00:03]} Be1 {[%emt 0:00:02]} 40. Bc8 {[%emt 0:00:04]} Bb4 {[%emt 0:00:02]} 41. Bd7 {[%emt 0:00:04]} Ba3 {[%emt 0:00:01]} 42. Kc2 {[%emt 0:00:03]} Bb4 {[%emt 0:00:04]} 43. Kd3 {[%emt 0:00:04]} h6 {[%emt 0:00:01]} 44. Bc8 {[%emt 0:00:06]} Be1 {[%emt 0:00:12]} 45. Bd7 {[%emt 0:00:03]} Bh4 {[%emt 0:00:02]} 46. Bc8 {[%emt 0:00:02]} Kg6 {[%emt 0:00:04]} 47. Bd7 {[%emt 0:00:03]} Be7 {[%emt 0:00:02]} 48. Bc8 {[%emt 0:00:03]} Bf6 {[%emt 0:00:02]} 49. Bd7 {[%emt 0:00:04]} Bd8 {[%emt 0:00:12]} 50. Bc8 {[%emt 0:00:03]} Kf6 {[%emt 0:00:02]} 51. Bd7 {[%emt 0:00:03]} Bc7 {[%emt 0:00:02]} 52. Ke3 {[%emt 0:00:03]} Bd6 {[%emt 0:00:02]} 53. Bc8 {[%emt 0:00:02]} Bc7 {[%emt 0:00:11]} 54. Bd7 {[%emt 0:00:01]} Bd6 {[%emt 0:00:02]} 55. Bc8 {[%emt 0:00:02]} Bc7 {[%emt 0:00:01]} 56. Bd7 {[%emt 0:00:02]} 1/2-1/2

[Event "European Online Club-ch-I 2021"]
[Site "Online"]
[Date "2021.03.27"]
[Round "6.13"]
[White "Anton Guijarro, David"]
[Black "Javakhishvili, Lela"]
[Result "1/2-1/2"]
[ECO "A35"]
[WhiteElo "2673"]
[BlackElo "2473"]
[Annotator "ChessBase"]
[PlyCount "93"]
[EventDate "2021.03.27"]
[EventType "team-tourn"]
[EventCountry "NET"]
[SourceTitle "playchess.com"]
[Source "ChessBase"]
[SourceQuality "1"]
[TimeControl "900+5"]

1. Nf3 {[%emt 0:00:00]} c5 {[%emt 0:00:08]} 2. c4 {[%emt 0:00:07]} Nc6 {[%emt 0:00:04]} 3. Nc3 {[%emt 0:00:03]} g6 {[%emt 0:00:01]} 4. e3 {[%emt 0:00:02]} Nf6 {[%emt 0:00:02]} 5. d4 {[%emt 0:00:02]} cxd4 {[%emt 0:00:01]} 6. exd4 {[%emt 0:00:01]} d5 {[%emt 0:00:02]} 7. h3 {[%emt 0:00:02]} Bg7 {[%emt 0:00:13]} 8. c5 {[%emt 0:00:02]} O-O {[%emt 0:00:03]} 9. Bb5 {[%emt 0:00:01]} Ne4 {[%emt 0:00:09]} 10. O-O {[%emt 0:00:04]} Nxc3 {[%emt 0:00:34]} 11. bxc3 {[%emt 0:00:02]} Qa5 {[%emt 0:00:02]} 12. Qb3 {[%emt 0:00:39]} Bf5 {[%emt 0:00:06]} 13. Bg5 {[%emt 0:00:38]} Rfe8 {[%emt 0:00:25]} 14. Rfe1 {[%emt 0:00:05]} h6 {[%emt 0:00:59]} 15. Bf4 {[%emt 0:00:34]} g5 {[%emt 0:01:03]} 16. Be5 {[%emt 0:01:10]} Nxe5 {[%emt 0:00:58]} 17. Nxe5 {[%emt 0:00:04]} Red8 {[%emt 0:00:30]} 18. Re3 {[%emt 0:01:10]} Qc7 {[%emt 0:00:25]} 19. Rae1 {[%emt 0:00:18]} e6 {[%emt 0:00:10]} 20. Be2 {[%emt 0:00:49]} b6 {[%emt 0:00:19]} 21. cxb6 {[%emt 0:00:12]} axb6 {[%emt 0:00:04]} 22. Bh5 {[%emt 0:01:09]} Rf8 {[%emt 0:00:47]} 23. R1e2 {[%emt 0:01:27]} Be4 {[%emt 0:00:44]} 24. Nf3 {[%emt 0:01:18]} Ra7 {[%emt 0:00:47]} 25. Rb2 {[%emt 0:00:21]} Bf6 {[%emt 0:03:12]} 26. Nd2 {[%emt 0:00:24]} Bf5 {[%emt 0:00:04]} 27. Nf1 {[%emt 0:00:05]} Kg7 {[%emt 0:00:14]} 28. Ng3 {[%emt 0:00:06]} Bh7 {[%emt 0:00:15]} 29. Bd1 {[%emt 0:00:26]} Be7 {[%emt 0:00:17]} 30. Bc2 {[%emt 0:00:15]} Ra3 {[%emt 0:00:16]} 31. Qb5 {[%emt 0:01:19]} Rxc3 {[%emt 0:00:52]} 32. Bxh7 {[%emt 0:00:02]} Rxe3 {[%emt 0:00:31]} 33. Nh5+ {[%emt 0:00:49]} Kxh7 {[%emt 0:00:03]} 34. fxe3 {[%emt 0:00:02]} Qc3 {[%emt 0:02:08]} 35. Qe2 {[%emt 0:00:37]} Kg6 {[%emt 0:00:17]} 36. Ng3 {[%emt 0:00:14]} Bb4 {[%emt 0:00:23]} 37. Nf1 {[%emt 0:00:14]} Rc8 {[%emt 0:00:08]} 38. Rb3 {[%emt 0:00:08]} Qe1 {[%emt 0:00:04]} 39. Qd3+ {[%emt 0:00:59]} Kg7 {[%emt 0:00:03]} 40. Rb1 {[%emt 0:00:06]} Qc3 {[%emt 0:00:04]} 41. Qxc3 {[%emt 0:00:05]} Bxc3 {[%emt 0:00:03]} 42. Rxb6 {[%emt 0:00:03]} Ba5 {[%emt 0:00:21]} 43. Rb5 {[%emt 0:00:18]} Be1 {[%emt 0:00:02]} 44. Rb1 {[%emt 0:00:08]} Ba5 {[%emt 0:00:04]} 45. Rb5 {[%emt 0:00:36]} Be1 {[%emt 0:00:03]} 46. Rb1 {[%emt 0:00:04]} Ba5 {[%emt 0:00:02]} 47. Rb5 {[%emt 0:00:02]} 1/2-1/2

[Event "European Online Club-ch-I 2021"]
[Site "Online"]
[Date "2021.03.27"]
[Round "6.14"]
[White "Bulmaga, Irina"]
[Black "Mchedlishvili, Mikheil"]
[Result "0-1"]
[ECO "B90"]
[WhiteElo "2440"]
[BlackElo "2570"]
[Annotator "ChessBase"]
[PlyCount "88"]
[EventDate "2021.03.27"]
[EventType "team-tourn"]
[EventCountry "NET"]
[SourceTitle "playchess.com"]
[Source "ChessBase"]
[SourceQuality "1"]
[TimeControl "900+5"]

1. e4 {[%emt 0:00:00]} c5 {[%emt 0:00:03]} 2. Nf3 {[%emt 0:00:03]} d6 {[%emt 0:00:03]} 3. d4 {[%emt 0:00:03]} cxd4 {[%emt 0:00:02]} 4. Nxd4 {[%emt 0:00:01]} Nf6 {[%emt 0:00:02]} 5. Nc3 {[%emt 0:00:01]} a6 {[%emt 0:00:02]} 6. Be3 {[%emt 0:00:06]} e5 {[%emt 0:00:05]} 7. Nb3 {[%emt 0:00:03]} Be7 {[%emt 0:00:05]} 8. h3 {[%emt 0:00:11]} h6 {[%emt 0:00:03]} 9. f4 {[%emt 0:00:36]} Nbd7 {[%emt 0:00:41]} 10. g4 {[%emt 0:02:18]} b5 {[%emt 0:00:50]} 11. Bg2 {[%emt 0:00:49]} Bb7 {[%emt 0:00:06]} 12. Qd2 {[%emt 0:00:37]} O-O {[%emt 0:01:06]} 13. O-O-O {[%emt 0:00:23]} b4 {[%emt 0:00:11]} 14. Nd5 {[%emt 0:00:05]} Nxd5 {[%emt 0:00:04]} 15. exd5 {[%emt 0:00:03]} a5 {[%emt 0:00:01]} 16. Kb1 {[%emt 0:00:38]} Qc7 {[%emt 0:01:56]} 17. h4 {[%emt 0:00:31]} a4 {[%emt 0:00:44]} 18. Nc1 {[%emt 0:00:04]} Rfc8 {[%emt 0:01:00]} 19. g5 {[%emt 0:01:38]} h5 {[%emt 0:00:04]} 20. f5 {[%emt 0:00:24]} Bd8 {[%emt 0:00:12]} 21. Be4 {[%emt 0:00:21]} Nc5 {[%emt 0:00:47]} 22. Bxc5 {[%emt 0:00:25]} Qxc5 {[%emt 0:00:02]} 23. Nd3 {[%emt 0:02:20]} Qd4 {[%emt 0:00:05]} 24. Qe2 {[%emt 0:00:57]} a3 {[%emt 0:00:41]} 25. b3 {[%emt 0:01:39]} Rab8 {[%emt 0:04:01]} 26. c4 {[%emt 0:01:56]} bxc3 {[%emt 0:00:25]} 27. Kc2 {[%emt 0:00:15]} Bxd5 {[%emt 0:02:18]} 28. Nf2 {[%emt 0:00:16]} Qxf2 {[%emt 0:00:04]} 29. Qxf2 {[%emt 0:00:05]} Bxe4+ {[%emt 0:00:02]} 30. Kc1 {[%emt 0:00:23]} c2 {[%emt 0:00:19]} 31. Rd2 {[%emt 0:00:09]} Bb6 {[%emt 0:00:06]} 32. Qe2 {[%emt 0:00:03]} Bxh1 {[%emt 0:00:08]} 33. g6 {[%emt 0:00:06]} Ba5 {[%emt 0:00:32]} 34. Rxc2 {[%emt 0:00:07]} Rxc2+ {[%emt 0:00:12]} 35. Qxc2 {[%emt 0:00:09]} Bb7 {[%emt 0:00:07]} 36. Kd1 {[%emt 0:00:07]} Bf3+ {[%emt 0:00:19]} 37. Kc1 {[%emt 0:00:02]} fxg6 {[%emt 0:00:09]} 38. fxg6 {[%emt 0:00:02]} Bg4 {[%emt 0:00:03]} 39. Qc4+ {[%emt 0:00:04]} Kh8 {[%emt 0:00:02]} 40. Qd3 {[%emt 0:00:10]} Rc8+ {[%emt 0:00:06]} 41. Kb1 {[%emt 0:00:01]} Bb6 {[%emt 0:00:06]} 42. b4 {[%emt 0:00:06]} Bd4 {[%emt 0:00:02]} 43. b5 {[%emt 0:00:05]} d5 {[%emt 0:00:09]} 44. Qd2 {[%emt 0:00:11]} Bf5+ {[%emt 0:00:04]} 0-1

[Event "European Online Club-ch-I 2021"]
[Site "Online"]
[Date "2021.03.27"]
[Round "6.15"]
[White "Ibarra Jerez, Jose Carlos"]
[Black "Atalik, Ekaterina"]
[Result "1-0"]
[ECO "C45"]
[WhiteElo "2553"]
[BlackElo "2430"]
[Annotator "ChessBase"]
[PlyCount "91"]
[EventDate "2021.03.27"]
[EventType "team-tourn"]
[EventCountry "NET"]
[SourceTitle "playchess.com"]
[Source "ChessBase"]
[SourceQuality "1"]
[TimeControl "900+5"]

1. e4 {[%emt 0:00:00]} e5 {[%emt 0:00:05]} 2. Nf3 {[%emt 0:00:04]} Nc6 {[%emt 0:00:03]} 3. d4 {[%emt 0:00:03]} exd4 {[%emt 0:00:05]} 4. Nxd4 {[%emt 0:00:01]} Bc5 {[%emt 0:00:01]} 5. Nb3 {[%emt 0:00:04]} Bb6 {[%emt 0:00:24]} 6. Qe2 {[%emt 0:00:05]} d6 {[%emt 0:00:06]} 7. Nc3 {[%emt 0:00:07]} Nge7 {[%emt 0:00:26]} 8. Be3 {[%emt 0:00:11]} O-O {[%emt 0:00:04]} 9. O-O-O {[%emt 0:00:08]} Bxe3+ {[%emt 0:00:28]} 10. Qxe3 {[%emt 0:00:04]} a5 {[%emt 0:00:09]} 11. a3 {[%emt 0:00:35]} a4 {[%emt 0:01:42]} 12. Nd4 {[%emt 0:01:25]} Bd7 {[%emt 0:00:26]} 13. f4 {[%emt 0:00:14]} Re8 {[%emt 0:00:40]} 14. Bc4 {[%emt 0:00:24]} Nxd4 {[%emt 0:02:57]} 15. Qxd4 {[%emt 0:00:05]} Nc6 {[%emt 0:02:28]} 16. Qf2 {[%emt 0:00:22]} Na5 {[%emt 0:00:07]} 17. Ba2 {[%emt 0:01:07]} b5 {[%emt 0:00:45]} 18. e5 {[%emt 0:00:50]} dxe5 {[%emt 0:00:22]} 19. Ne4 {[%emt 0:00:48]} Qe7 {[%emt 0:00:25]} 20. f5 {[%emt 0:00:27]} Ra6 {[%emt 0:02:55]} 21. Rhf1 {[%emt 0:00:35]} Nc4 {[%emt 0:01:18]} 22. f6 {[%emt 0:01:03]} gxf6 {[%emt 0:00:02]} 23. Bxc4 {[%emt 0:01:16]} bxc4 {[%emt 0:00:03]} 24. Nxf6+ {[%emt 0:00:39]} Rxf6 {[%emt 0:00:02]} 25. Qxf6 {[%emt 0:00:02]} Qxf6 {[%emt 0:00:06]} 26. Rxf6 {[%emt 0:00:00]} Be6 {[%emt 0:00:01]} 27. g4 {[%emt 0:00:52]} Kg7 {[%emt 0:00:06]} 28. g5 {[%emt 0:00:04]} c6 {[%emt 0:00:28]} 29. Re1 {[%emt 0:00:14]} Bd5 {[%emt 0:00:05]} 30. h4 {[%emt 0:00:13]} c3 {[%emt 0:00:28]} 31. bxc3 {[%emt 0:00:07]} e4 {[%emt 0:00:01]} 32. c4 {[%emt 0:00:10]} Bxc4 {[%emt 0:00:04]} 33. Rxc6 {[%emt 0:00:02]} Bd5 {[%emt 0:00:02]} 34. Rc5 {[%emt 0:00:27]} Ba8 {[%emt 0:00:05]} 35. Kd2 {[%emt 0:00:22]} Rb8 {[%emt 0:00:09]} 36. Rf1 {[%emt 0:00:12]} Rd8+ {[%emt 0:00:06]} 37. Ke3 {[%emt 0:00:03]} Rd7 {[%emt 0:00:05]} 38. Rf6 {[%emt 0:00:20]} Bd5 {[%emt 0:00:06]} 39. h5 {[%emt 0:00:10]} Kf8 {[%emt 0:00:05]} 40. Rb6 {[%emt 0:00:26]} Ke7 {[%emt 0:00:06]} 41. c4 {[%emt 0:00:24]} Be6 {[%emt 0:00:03]} 42. Kxe4 {[%emt 0:00:06]} Rd1 {[%emt 0:00:02]} 43. Rc7+ {[%emt 0:00:09]} Kd8 {[%emt 0:00:01]} 44. Ra7 {[%emt 0:00:07]} Kc8 {[%emt 0:00:02]} 45. Rxe6 {[%emt 0:00:10]} Re1+ {[%emt 0:00:02]} 46. Kd4 {[%emt 0:00:19]} 1-0

[Event "European Online Club-ch-I 2021"]
[Site "Online"]
[Date "2021.03.27"]
[Round "6.16"]
[White "Daulyte-Cornette, Deimante"]
[Black "Cuenca Jimenez, Jose Fernando"]
[Result "1-0"]
[ECO "C42"]
[WhiteElo "2387"]
[BlackElo "2506"]
[Annotator "ChessBase"]
[PlyCount "121"]
[EventDate "2021.03.27"]
[EventType "team-tourn"]
[EventCountry "NET"]
[SourceTitle "playchess.com"]
[Source "ChessBase"]
[SourceQuality "1"]
[TimeControl "900+5"]

1. e4 {[%emt 0:00:00]} e5 {[%emt 0:00:07]} 2. Bc4 {[%emt 0:00:03]} Nf6 {[%emt 0:00:11]} 3. Nc3 {[%emt 0:00:03]} Nc6 {[%emt 0:00:47]} 4. d3 {[%emt 0:00:06]} Bb4 {[%emt 0:00:18]} 5. Nf3 {[%emt 0:01:18]} d6 {[%emt 0:00:16]} 6. h3 {[%emt 0:00:14]} O-O {[%emt 0:00:09]} 7. Bg5 {[%emt 0:00:12]} Bxc3+ {[%emt 0:00:23]} 8. bxc3 {[%emt 0:00:02]} Qe7 {[%emt 0:00:09]} 9. O-O {[%emt 0:00:11]} Nd8 {[%emt 0:00:36]} 10. Re1 {[%emt 0:00:15]} Ne6 {[%emt 0:00:18]} 11. Bc1 {[%emt 0:00:28]} Nc5 {[%emt 0:01:13]} 12. Bg5 {[%emt 0:00:26]} h6 {[%emt 0:00:17]} 13. Bh4 {[%emt 0:00:08]} Ne6 {[%emt 0:00:35]} 14. Bxe6 {[%emt 0:00:57]} Qxe6 {[%emt 0:00:16]} 15. d4 {[%emt 0:00:53]} Nd7 {[%emt 0:00:39]} 16. Nd2 {[%emt 0:00:45]} b6 {[%emt 0:00:18]} 17. Qg4 {[%emt 0:00:42]} Re8 {[%emt 0:00:52]} 18. Nf1 {[%emt 0:01:35]} Nf8 {[%emt 0:01:29]} 19. Qh5 {[%emt 0:00:34]} Qg6 {[%emt 0:01:24]} 20. Qxg6 {[%emt 0:00:08]} Nxg6 {[%emt 0:00:02]} 21. Bg3 {[%emt 0:00:01]} Be6 {[%emt 0:01:07]} 22. Ne3 {[%emt 0:00:29]} f6 {[%emt 0:00:02]} 23. f3 {[%emt 0:00:16]} a5 {[%emt 0:00:04]} 24. a3 {[%emt 0:00:18]} Ne7 {[%emt 0:00:14]} 25. f4 {[%emt 0:00:27]} exf4 {[%emt 0:00:13]} 26. Bxf4 {[%emt 0:00:03]} Bf7 {[%emt 0:00:04]} 27. g4 {[%emt 0:00:45]} Ng6 {[%emt 0:00:13]} 28. Ng2 {[%emt 0:00:01]} Re7 {[%emt 0:00:12]} 29. Re3 {[%emt 0:00:39]} Rae8 {[%emt 0:00:13]} 30. Rae1 {[%emt 0:00:03]} Nf8 {[%emt 0:00:20]} 31. Kf2 {[%emt 0:00:37]} g5 {[%emt 0:00:41]} 32. Bg3 {[%emt 0:00:06]} Bg6 {[%emt 0:00:18]} 33. Kf3 {[%emt 0:00:08]} Nd7 {[%emt 0:00:04]} 34. R1e2 {[%emt 0:00:10]} Nb8 {[%emt 0:00:19]} 35. Ne1 {[%emt 0:00:22]} Nc6 {[%emt 0:00:03]} 36. Nd3 {[%emt 0:00:09]} a4 {[%emt 0:00:16]} 37. Nb2 {[%emt 0:00:29]} b5 {[%emt 0:00:05]} 38. h4 {[%emt 0:01:18]} b4 {[%emt 0:00:19]} 39. axb4 {[%emt 0:00:42]} a3 {[%emt 0:00:03]} 40. Nc4 {[%emt 0:00:01]} a2 {[%emt 0:00:07]} 41. Re1 {[%emt 0:00:02]} Bxe4+ {[%emt 0:00:26]} 42. Kf2 {[%emt 0:00:02]} Bd5 {[%emt 0:00:10]} 43. Rxe7 {[%emt 0:00:02]} Rxe7 {[%emt 0:01:14]} 44. Ne3 {[%emt 0:00:02]} Na7 {[%emt 0:01:06]} 45. Ra1 {[%emt 0:00:10]} Rxe3 {[%emt 0:00:05]} 46. Kxe3 {[%emt 0:00:03]} Nb5 {[%emt 0:00:06]} 47. Kd2 {[%emt 0:01:09]} Na3 {[%emt 0:00:04]} 48. Kc1 {[%emt 0:00:19]} Nb1 {[%emt 0:00:02]} 49. Kb2 {[%emt 0:00:07]} Kf7 {[%emt 0:00:11]} 50. hxg5 {[%emt 0:00:25]} hxg5 {[%emt 0:00:12]} 51. Be1 {[%emt 0:00:01]} Ke6 {[%emt 0:00:12]} 52. Rxa2 {[%emt 0:00:03]} Bxa2 {[%emt 0:00:02]} 53. Kxa2 {[%emt 0:00:03]} Kd5 {[%emt 0:00:01]} 54. Kxb1 {[%emt 0:00:03]} Ke4 {[%emt 0:00:02]} 55. b5 {[%emt 0:00:10]} Kd5 {[%emt 0:00:16]} 56. Kb2 {[%emt 0:00:02]} Kc4 {[%emt 0:00:03]} 57. Bf2 {[%emt 0:00:06]} Kxb5 {[%emt 0:00:03]} 58. Kb3 {[%emt 0:00:02]} d5 {[%emt 0:00:11]} 59. c4+ {[%emt 0:00:01]} dxc4+ {[%emt 0:00:02]} 60. Kc3 {[%emt 0:00:01]} c6 {[%emt 0:00:01]} 61. Be3 {[%emt 0:00:03]} 1-0

[Event "European Online Club-ch-I 2021"]
[Site "Online"]
[Date "2021.03.27"]
[Round "6.17"]
[White "Saric, Ivan"]
[Black "Iskandarov, Misratdin"]
[Result "1/2-1/2"]
[ECO "C73"]
[WhiteElo "2648"]
[BlackElo "2535"]
[Annotator "ChessBase"]
[PlyCount "77"]
[EventDate "2021.03.27"]
[EventType "team-tourn"]
[EventCountry "NET"]
[SourceTitle "playchess.com"]
[Source "ChessBase"]
[SourceQuality "1"]
[TimeControl "900+5"]

1. e4 {[%emt 0:00:00]} e5 {[%emt 0:00:08]} 2. Nf3 {[%emt 0:00:03]} Nc6 {[%emt 0:00:01]} 3. Bb5 {[%emt 0:00:08]} a6 {[%emt 0:00:03]} 4. Ba4 {[%emt 0:00:01]} d6 {[%emt 0:00:03]} 5. O-O {[%emt 0:00:04]} g6 {[%emt 0:00:13]} 6. Bxc6+ {[%emt 0:00:50]} bxc6 {[%emt 0:00:02]} 7. d4 {[%emt 0:00:02]} f6 {[%emt 0:01:28]} 8. c4 {[%emt 0:00:42]} Bg7 {[%emt 0:00:41]} 9. Nc3 {[%emt 0:00:32]} Ne7 {[%emt 0:00:04]} 10. dxe5 {[%emt 0:00:17]} fxe5 {[%emt 0:00:09]} 11. c5 {[%emt 0:00:02]} O-O {[%emt 0:01:00]} 12. Qb3+ {[%emt 0:00:30]} Kh8 {[%emt 0:00:05]} 13. Ng5 {[%emt 0:00:05]} d5 {[%emt 0:00:15]} 14. Re1 {[%emt 0:01:48]} h6 {[%emt 0:00:21]} 15. Nf3 {[%emt 0:00:03]} Bg4 {[%emt 0:00:19]} 16. Nd2 {[%emt 0:00:38]} Qd7 {[%emt 0:01:02]} 17. Nf1 {[%emt 0:00:20]} Be6 {[%emt 0:01:12]} 18. Qa4 {[%emt 0:00:09]} d4 {[%emt 0:00:51]} 19. Nd1 {[%emt 0:00:15]} g5 {[%emt 0:00:08]} 20. Ng3 {[%emt 0:00:07]} Ng6 {[%emt 0:00:03]} 21. f3 {[%emt 0:00:49]} Nh4 {[%emt 0:00:18]} 22. Rf1 {[%emt 0:01:14]} g4 {[%emt 0:00:22]} 23. f4 {[%emt 0:00:23]} exf4 {[%emt 0:00:03]} 24. Bxf4 {[%emt 0:00:06]} Nf3+ {[%emt 0:00:03]} 25. gxf3 {[%emt 0:00:05]} Rxf4 {[%emt 0:00:02]} 26. fxg4 {[%emt 0:00:16]} Rxf1+ {[%emt 0:00:09]} 27. Kxf1 {[%emt 0:00:01]} Rf8+ {[%emt 0:00:06]} 28. Nf5 {[%emt 0:00:05]} Qe7 {[%emt 0:02:03]} 29. Qxc6 {[%emt 0:00:32]} Bc4+ {[%emt 0:00:04]} 30. Kg2 {[%emt 0:00:43]} Rxf5 {[%emt 0:03:17]} 31. gxf5 {[%emt 0:01:41]} Qg5+ {[%emt 0:00:08]} 32. Kh1 {[%emt 0:00:06]} Qf4 {[%emt 0:00:26]} 33. Qe8+ {[%emt 0:00:08]} Bg8 {[%emt 0:00:03]} 34. Kg2 {[%emt 0:00:36]} Qg4+ {[%emt 0:00:16]} 35. Kf1 {[%emt 0:01:07]} Qh3+ {[%emt 0:00:35]} 36. Kg1 {[%emt 0:00:06]} Qg4+ {[%emt 0:00:05]} 37. Kf1 {[%emt 0:00:02]} Qh3+ {[%emt 0:01:14]} 38. Kg1 {[%emt 0:00:04]} Qg4+ {[%emt 0:00:06]} 39. Kf1 {[%emt 0:00:03]} 1/2-1/2

[Event "European Online Club-ch-I 2021"]
[Site "Online"]
[Date "2021.03.27"]
[Round "6.18"]
[White "Ibrahimov, Rasul"]
[Black "Heberla, Bartlomiej"]
[Result "0-1"]
[ECO "E94"]
[WhiteElo "2527"]
[BlackElo "2556"]
[Annotator "ChessBase"]
[PlyCount "84"]
[EventDate "2021.03.27"]
[EventType "team-tourn"]
[EventCountry "NET"]
[SourceTitle "playchess.com"]
[Source "ChessBase"]
[SourceQuality "1"]
[TimeControl "900+5"]

1. Nf3 {[%emt 0:00:00]} Nf6 {[%emt 0:00:07]} 2. c4 {[%emt 0:00:04]} g6 {[%emt 0:00:01]} 3. Nc3 {[%emt 0:00:03]} Bg7 {[%emt 0:00:00]} 4. e4 {[%emt 0:00:01]} O-O {[%emt 0:00:02]} 5. d4 {[%emt 0:00:02]} d6 {[%emt 0:00:01]} 6. Be2 {[%emt 0:00:02]} Nbd7 {[%emt 0:00:04]} 7. O-O {[%emt 0:00:23]} e5 {[%emt 0:00:03]} 8. Be3 {[%emt 0:00:04]} c6 {[%emt 0:00:01]} 9. d5 {[%emt 0:00:03]} c5 {[%emt 0:00:04]} 10. Nd2 {[%emt 0:00:02]} Kh8 {[%emt 0:00:31]} 11. Rb1 {[%emt 0:00:24]} Ng8 {[%emt 0:00:41]} 12. f3 {[%emt 0:00:05]} f5 {[%emt 0:00:50]} 13. b4 {[%emt 0:00:46]} f4 {[%emt 0:01:53]} 14. Bf2 {[%emt 0:00:03]} g5 {[%emt 0:00:01]} 15. bxc5 {[%emt 0:02:06]} Nxc5 {[%emt 0:00:03]} 16. Nb3 {[%emt 0:00:02]} b6 {[%emt 0:00:10]} 17. Nxc5 {[%emt 0:00:22]} bxc5 {[%emt 0:00:08]} 18. Qa4 {[%emt 0:00:39]} a6 {[%emt 0:03:02]} 19. Rb3 {[%emt 0:00:33]} Bd7 {[%emt 0:01:40]} 20. Qa3 {[%emt 0:00:02]} Rf6 {[%emt 0:00:42]} 21. Rfb1 {[%emt 0:00:13]} Rg6 {[%emt 0:00:04]} 22. h3 {[%emt 0:00:41]} h5 {[%emt 0:00:06]} 23. Na4 {[%emt 0:00:04]} g4 {[%emt 0:00:51]} 24. fxg4 {[%emt 0:00:10]} hxg4 {[%emt 0:00:00]} 25. hxg4 {[%emt 0:00:25]} Bxg4 {[%emt 0:00:07]} 26. Bxg4 {[%emt 0:00:43]} Rxg4 {[%emt 0:00:00]} 27. Rh3+ {[%emt 0:00:08]} Nh6 {[%emt 0:00:02]} 28. Qf3 {[%emt 0:00:20]} Rg6 {[%emt 0:00:49]} 29. Rb7 {[%emt 0:01:10]} Rb8 {[%emt 0:00:17]} 30. Rb3 {[%emt 0:00:54]} Rxb3 {[%emt 0:00:13]} 31. axb3 {[%emt 0:00:08]} Kg8 {[%emt 0:00:41]} 32. Kf1 {[%emt 0:00:53]} Ng4 {[%emt 0:01:03]} 33. Rh5 {[%emt 0:00:51]} Qa5 {[%emt 0:00:31]} 34. Be1 {[%emt 0:00:13]} Qd8 {[%emt 0:00:09]} 35. Ke2 {[%emt 0:00:50]} Ne3 {[%emt 0:00:18]} 36. g3 {[%emt 0:00:19]} Nc2 {[%emt 0:00:01]} 37. Bf2 {[%emt 0:00:39]} Rxg3 {[%emt 0:00:37]} 38. Qh1 {[%emt 0:00:07]} Rxb3 {[%emt 0:00:15]} 39. Qd1 {[%emt 0:01:02]} Qa5 {[%emt 0:00:29]} 40. Nxc5 {[%emt 0:00:22]} dxc5 {[%emt 0:00:45]} 41. Qxc2 {[%emt 0:00:04]} Qb4 {[%emt 0:00:16]} 42. Be1 {[%emt 0:00:30]} Re3+ {[%emt 0:00:03]} 0-1